Cogmind - Beta 16.1 @@@ ROGUE MODE // 2026.04.04 @ 17:41:05 Player: RHAHI Result: Destroyed by VP-V57(j) with Overtuned Pulse Rifle Performance ------------- Evolutions (0) 0 Regions Visited (4) 800 Robots Destroyed (54) 270 Value Destroyed (1080) 1080 Prototype IDs (15) 300 Alien Tech Used (0) 0 Bonus (1220) 1220 TOTAL SCORE: 3670 Bonus ------- Follower Combat Kills 420 Registered with UFD 300 Met Optimus in HQ 500 Cogmind --------- Core Integrity 0/250 Matter 280/300 Energy 78/100 System Corruption 0% Temperature Cool (12) Movement Flying (40) Location -7/Scraptown Parts ------- > --- POWER (1) -------- (None) > --- PROPULSION (2) --- Xenon Bombardment Thruster > --- UTILITY (2) ------ Advanced Signal Interpreter Seismic Detector > --- WEAPON (2) ------- LU-1G1's Laser Shovel Makeshift Spear > --- INVENTORY (5) ---- Hardened Light Armor Plating Peak State ------------ > --- POWER ------------ Improved Ion Engine > --- PROPULSION ------- Armored Huge Wheel > --- UTILITY ---------- High-capacity Storage Unit Improved Sensor Array > --- WEAPON ----------- Rocket Launcher Makeshift Hammer > --- INVENTORY -------- Makeshift Power Source Armored Wheel Subdweller Monowheel VTOL Module Xenon Bombardment Thruster Medium Storage Unit Advanced Signal Interpreter Improved Reaction Control System Hardened Light Armor Plating Makeshift Hacking Suite Tractor Beam Improved Field Recycling Unit Power Bank 1B-0RG's Assimilator [Rating: 31] Favorites ----------- Power Improved Ion Engine Engine Improved Ion Engine Propulsion Light Treads Treads Light Treads Wheel Armored Huge Wheel Flight Unit Xenon Bombardment Thruster Utility Improved Sensor Array Device Improved Sensor Array Storage High-capacity Storage Unit Processor Advanced Signal Interpreter Hackware Hacking Suite Protection Hardened Light Armor Plating Weapon Makeshift Spear Energy Gun Subdweller Laser Energy Cannon Subdweller Beam Cannon Ballistic Gun Subdweller Machine Gun Ballistic Cannon Light Cannon Launcher Rocket Launcher Special Weapon Flamer Impact Weapon Makeshift Hammer Piercing Weapon Makeshift Spear Special Melee Weapon Datajack Build | -11 -10 -10 -10 -7 ------- Run | Yrd Mat Min Sub Scr Slots Evolved . | . . . . . Power . | . . . . . Propulsion . | . . . . . Utility . | . . . . . Weapon . | . . . . . Parts Attached 62 | 7 15 2 19 19 Power 7 | 1 1 . 1 4 Engine 7 | 1 1 . 1 4 Core . | . . . . . Reactor . | . . . . . Propulsion 12 | 2 3 . 4 3 Treads 4 | . 3 . 1 . Leg . | . . . . . Wheel 6 | 2 . . 3 1 Hover . | . . . . . Flight 2 | . . . . 2 Utility 23 | 2 6 1 7 7 Device 6 | 1 1 . 2 2 Storage 6 | 1 3 . 1 1 Processor 1 | . . . . 1 Hackware 1 | . 1 . . . Protection 9 | . 1 1 4 3 Artifact . | . . . . . Weapon 20 | 2 5 1 7 5 Energy Gun 2 | . . . 1 1 Energy Cannon 1 | . . . 1 . Ballistic Gun 6 | 2 1 1 2 . Ballistic Cannon 3 | . 2 . 1 . Launcher 2 | . 1 . . 1 Special Weapon 2 | . . . 1 1 Impact Weapon 1 | . . . 1 . Slashing Weapon . | . . . . . Piercing Weapon 2 | . . . . 2 Special Melee Weapon 1 | . 1 . . . Unidentified Prototypes 1 | . . . . 1 Parts Lost 2 | . . . 1 1 Power . | . . . . . Propulsion 2 | . . . 1 1 Utility . | . . . . . Weapon . | . . . . . Highest Loss Streak 1 | . . . 1 1 To Critical Strikes 1 | . . . 1 . Average Backups 7 | 4 17 19 17 3 Power 1 | 1 1 2 3 . Propulsion 1 | 1 4 5 4 . Utility 3 | . 7 7 4 2 Weapon 1 | . 3 4 3 . Tool/Special . | . . . . . Unused Backups 109 | . 3 . 14 92 Power 13 | . 1 . 5 7 Propulsion 28 | . . . 2 26 Utility 40 | . 2 . 4 34 Weapon 25 | . . . 3 22 Tool/Special 3 | . . . . 3 Average Slot Usage (%) 72 | . 99 100 99 61 Engine 5 | . 13 14 14 2 Treads 9 | . 25 28 27 1 Wheel 2 | . 2 . . 2 Flight 7 | . . . . 10 Device 11 | . 5 1 12 12 Storage 6 | . 14 14 13 3 Processor 7 | . . . . 10 Ballistic Gun 3 | . 5 3 14 . Ballistic Cannon 2 | . 22 24 4 . Launcher 1 | . . . . 2 Special Weapon 1 | . . . . 1 Impact Weapon 3 | . . . 6 3 Piercing Weapon 7 | . . . . 9 Peak Build Rating 31 | 7 13 13 27 31 Average Rating 17 | 4 11 10 14 19 On Entrance 11 | . 7 13 11 27 Avg Prop Armor Cover (%) . | . . . . . Naked Turns . | . . . . . Heaviest Build 211 | 14 54 58 211 210 Greatest Support 40 | 26 40 40 40 40 Greatest Overweight (x) 10 | . 1 1 10 5 Average Overweight (x) . | . . 1 1 . Largest Inventory Capacity 35 | 8 20 20 35 35 Average Capacity 11 | 7 17 20 20 8 Most Carried 35 | 8 20 20 35 35 Average Carried 10 | 5 17 19 18 6 Final Capacity 35 | 8 20 20 35 5 Final Carried 35 | 6 20 20 35 1 Class Distribution -------------------- 72% | Mutant 26% | Derelict-Mutant Dominant Class ---------------- Mutant | -10/Materials Mutant | -10/Mines Mutant | -10/Subcaves Mutant | -7/Scraptown Resources | -11 -10 -10 -10 -7 ----------- Run | Yrd Mat Min Sub Scr Matter Collected 2629 | 251 695 233 925 525 Remotely . | . . . . . Salvage Created 1385 | 74 643 141 527 . Parts 93 | 6 49 6 32 . Haulers Intercepted 2 | . 2 . . . Recyclers Shooed 2 | . 1 1 . . Parts Field Recycled . | . . . . . Retrieved Matter . | . . . . . Parts Self-Destructed 36 | . . . 19 17 Prevented . | . . . . . Parts Restored . | . . . . . Kills | -11 -10 -10 -10 -7 ------- Run | Yrd Mat Min Sub Scr Combat Hostiles Destroyed 34 | . 17 2 15 . Melee 2 | . . . 2 . Guns 15 | . 8 . 7 . Cannons 15 | . 8 2 5 . AOE 1 | . 1 . . . Classes Destroyed 9 | 1 6 1 1 . Worker 6 | . 5 1 . . Tunneler 5 | 4 . 1 . . Hauler 2 | . 2 . . . Recycler 1 | . . 1 . . Operator 3 | . 3 . . . Watcher 3 | . 3 . . . Swarmer 13 | . 9 . 4 . Grunt 10 | . 8 2 . . Subdweller 11 | . . . 11 . Best Kill Streak 4 | 3 4 2 2 . Combat Bots Only 3 | . 3 2 2 . Max Kills in Single Turn 1 | 1 1 1 1 . Gunslinging . | . . . . . Exploded 1 | . 1 . . . Melee 1 | . . . 1 . Uniques/NPCs Destroyed . | . . . . . Combat | -11 -10 -10 -10 -7 -------- Run | Yrd Mat Min Sub Scr Hostile Shots Fired 170 | . 75 6 84 5 Missed 47 | . 21 2 23 1 Hits 123 | . 54 4 61 4 Projectile 123 | . 54 4 61 4 Critical Strikes 3 | . . . 2 1 Damage Taken 1696 | . 498 56 1019 123 Core 263 | . 70 14 116 63 Absorbed by Shields . | . . . . . Regen/Repaired (Parts) 158 | . 158 . . . Core Remaining (%) 100 | 100 . . . . Volleys Fired 164 | 13 76 8 63 4 Largest 2 | 2 2 2 2 1 Hottest 130 | 40 60 60 130 80 Shots Fired 307 | 26 149 16 112 4 Gun 191 | 26 100 . 61 4 Cannon 111 | . 48 16 47 . Launcher 1 | . 1 . . . Special 4 | . . . 4 . Kinetic 288 | 26 148 16 98 . Thermal 18 | . . . 14 4 Explosive 1 | . 1 . . . Electromagnetic . | . . . . . Robot Hit Streak 14 | 11 10 3 14 . Robot Miss Streak 5 | 3 5 2 3 . Penetration Max . | . . . . . Secondary Targets 1 | . 1 . . . Max Gunslinging Chain 1 | . 1 . . . Shots Hit Robots 188 | 17 83 10 78 . Core Hits 77 | 7 38 6 26 . Critical Kills . | . . . . . Critical Parts Destroyed 2 | . . . 2 . Critical Strikes 3 | . . . 3 . Blast 1 | . . . 1 . Smash 2 | . . . 2 . Melee Attacks 44 | . . . 28 16 Impact 38 | . . . 28 10 Slashing . | . . . . . Piercing 6 | . . . . 6 Sneak Attacks . | . . . . . Combat Hostiles . | . . . . . Follow-up Attacks . | . . . . . Damage Inflicted 3390 | 187 1296 244 1663 . Guns 1757 | 187 737 . 833 . Cannons 1036 | . 391 181 464 . Explosions 114 | . 114 . . . Melee 353 | . . . 353 . Ramming 117 | . 54 63 . . Kinetic 2766 | 187 1128 181 1270 . Thermal 40 | . . . 40 . Explosive 114 | . 114 . . . Electromagnetic . | . . . . . Impact 353 | . . . 353 . Slashing . | . . . . . Piercing . | . . . . . Highest Corruption . | . . . . . Average Corruption . | . . . . . Corruption Purged . | . . . . . Corruption Blocked . | . . . . . Overload Shots . | . . . . . Overflow Damage 110 | . 5 . 105 . Projectiles 5 | . 5 . . . Explosions . | . . . . . Melee 105 | . . . 105 . Knockbacks 10 | . 4 3 3 . Impact 2 | . 1 1 . . Kinetic 7 | . 3 1 3 . Secondary 1 | . . 1 . . Self-Inflicted Damage . | . . . . . Shots . | . . . . . Rammed 15 | . 7 8 . . Targets Rammed 18 | . 9 9 . . Kicked . | . . . . . Crushed 3 | . 2 1 . . Highest Temperature 260 | . 63 76 8 260 Average Temperature 37 | . 15 24 3 151 Received Heat Transfer 364 | . 144 33 114 73 Effects 5 | . . . . 5 Interference 5 | . . . . 5 Siege Activations . | . . . . . Martial Activations . | . . . . . Shielding Activations . | . . . . . Robots Disrupted . | . . . . . Combat Hostiles . | . . . . . Robots Corrupted 1 | . . . 1 . Combat Hostiles 1 | . . . 1 . Parts Fried 2 | . . . 2 . Impact Corruptions 2 | . . . 2 . Robots Melted . | . . . . . Combat Hostiles . | . . . . . Parts Melted . | . . . . . Heat Transferred 117 | . . . 117 . Parts Sabotaged . | . . . . . Parts Stolen . | . . . . . Parts Stripped . | . . . . . Power Chain Reactions . | . . . . . Alert | -11 -10 -10 -10 -7 ------- Run | Yrd Mat Min Sub Scr Maximum Alert Level . | . . . . . Low Security (%) 100 | 100 100 100 . . Level 1 . | . . . . . Level 2 . | . . . . . Level 3 . | . . . . . Level 4 . | . . . . . Level 5 . | . . . . . High Security . | . . . . . Max Security . | . . . . . Peak Influence 134 | 10 134 50 . . Initial . | . . . . . Average 24 | 1 42 1 . . Influence Increases 836 | 20 556 66 194 . Destroy 0b10 Robot/C 480 | . 340 40 100 . Destroy 0b10 Robot/NC 100 | 20 65 15 . . Destroy Leader 90 | . 80 10 . . Allied During Kill 5 | . . 1 4 . Trap Triggered on 0b10 10 | . 10 . . . Successful Hack 22 | . 22 . . . Disable Machine 15 | . 15 . . . Destroy Structure 9 | . 9 . . . Lose Combat Pursuer 105 | . 15 . 90 . Influence Decreases 836 | 20 553 69 139 55 Entered New Map 58 | . . 3 . 55 Time Decay 778 | 20 553 66 139 . Squads Dispatched 5 | . 5 . . . Investigation 3 | . 3 . . . Extermination . | . . . . . Reinforcement 2 | . 2 . . . Assault . | . . . . . Garrison . | . . . . . Intercept . | . . . . . Searches Triggered . | . . . . . Construction Impeded . | . . . . . Haulers Reinforced . | . . . . . Active Scanning Responses . | . . . . . Cargo Convoy Interrupts . | . . . . . Stealth | -11 -10 -10 -10 -7 --------- Run | Yrd Mat Min Sub Scr Distress Signals 2 | . 2 . . . Communications Jammed . | . . . . . Distress Signals . | . . . . . Times Spotted 69 | . 31 2 25 11 Peak Tracking Total 7 | . 4 2 4 7 Tactical Retreats 4 | . 1 . 2 1 Traps | -11 -10 -10 -10 -7 ------- Run | Yrd Mat Min Sub Scr Traps Triggered 1 | . 1 . . . Indirectly . | . . . . . Trap Hack Attempts 111 | . 22 . 89 . Triggered 1 | . 1 . . . Disarmed . | . . . . . Reprogrammed 8 | . 2 . 6 . Reused 2 | . 1 . . 1 Traps Extracted . | . . . . . Installed 4 | . . . 3 1 Triggered 1 | . 1 . . . Most Traps Carried 3 | . . 1 3 1 Machines | -11 -10 -10 -10 -7 ---------- Run | Yrd Mat Min Sub Scr Machines Disabled 6 | . 1 . 1 4 Max in Single Turn 1 | . 1 . 1 1 Machines Repaired . | . . . . . Machines Dismantled . | . . . . . Machines Sabotaged . | . . . . . Overloaded Fab Kills . | . . . . . Hacking | -11 -10 -10 -10 -7 --------- Run | Yrd Mat Min Sub Scr Machines Accessed 11 | . 7 . 2 2 Terminals 6 | . 6 . . . Fabricators . | . . . . . Repair Stations 1 | . 1 . . . Recycling Units . | . . . . . Scanalyzers . | . . . . . Garrison Access . | . . . . . Total Hacks 36 | . 23 . 6 7 Successful 26 | . 13 . 6 7 Failed 10 | . 10 . . . Catastrophic . | . . . . . Database Lockouts . | . . . . . Manual 18 | . 18 . . . Terminals 19 | . 19 . . . Fabricators . | . . . . . Repair Stations 4 | . 4 . . . Recycling Units . | . . . . . Scanalyzers . | . . . . . Garrison Access . | . . . . . Terminal Hacks 20 | . 7 . 6 7 Record 12 | . . . 5 7 Part Schematic 1 | . 1 . . . Robot Schematic 1 | . 1 . . . Robot Analysis 4 | . 4 . . . Reprogram Traps 1 | . 1 . . . Proto ID Catalog 1 | . . . 1 . Fabricator Hacks . | . . . . . Repair Station Hacks 4 | . 4 . . . Scan Component 2 | . 2 . . . Repair 2 | . 2 . . . Recycling Unit Hacks . | . . . . . Scanalyzer . | . . . . . Garrison Access Hacks . | . . . . . Unauthorized Hacks 2 | . 2 . . . Terminals 2 | . 2 . . . Skim 2 | . 2 . . . Fabricators . | . . . . . Repair Stations . | . . . . . Recycling Units . | . . . . . Scanalyzers . | . . . . . Garrison Access . | . . . . . Data Cores Recovered 1 | . 1 . . . Used 1 | . 1 . . . Hacking Detections 7 | . 7 . . . Full Trace Events 1 | . 1 . . . Feedback Events . | . . . . . Feedback Blocked . | . . . . . Robot Schematics Acquired 1 | . 1 . . . Robots Built . | . . . . . Authchips . | . . . . . Time . | . . . . . Total Robot Build Rating . | . . . . . Part Schematics Acquired 1 | . 1 . . . Parts Built . | . . . . . Authchips . | . . . . . Time . | . . . . . Total Part Build Rating . | . . . . . Part Studies Acquired . | . . . . . Parts Repaired 2 | . 2 . . . Time 58 | . 58 . . . Parts Recycled . | . . . . . Recycled Matter . | . . . . . Retrieved Matter . | . . . . . Retrieved Components . | . . . . . Parts Scanalyzed . | . . . . . Part Schematics Acquired . | . . . . . Parts Damaged . | . . . . . Bothacking | -11 -10 -10 -10 -7 ------------ Run | Yrd Mat Min Sub Scr Used RIF Installer . | . . . . . Robots Hacked . | . . . . . Non-combat . | . . . . . Combat . | . . . . . Robot Hacks Applied . | . . . . . Relay Couplers Released . | . . . . . Fabnet Peak Effective % . | . . . . . Robots Rewired . | . . . . . Allies Hacked . | . . . . . Hacks Repelled . | . . . . . Allies | -11 -10 -10 -10 -7 -------- Run | Yrd Mat Min Sub Scr Total Allies 10 | . . 5 . 5 Largest Group 5 | . . 5 5 3 Highest-Rated Group 173 | . . 89 89 173 Highest-Rated Ally 69 | . . 31 31 69 Total Orders 16 | . . . . 16 STAY 8 | . . . . 8 FOLLOW 6 | . . . . 6 GUARD 2 | . . . . 2 Ally Attacks 59 | . . . 35 24 Total Damage 1159 | . . . 493 666 Kills 13 | . . . 6 7 Allies Corrupted . | . . . . . Allies Melted 353 | . . . . 353 Intel | -11 -10 -10 -10 -7 ------- Run | Yrd Mat Min Sub Scr Active Infowar (turns) 46188 | 2 961 241 11078 33906 Sensors 29698 | . . . . 29698 Terrain 1314 | . . . 1314 . Structural 9700 | . . . 7998 1702 Seismic 5476 | 2 961 241 1766 2506 Robot Analysis Total 4 | . 4 . . . Derelict Logs Recovered 8 | . . 2 1 5 Drone Launches . | . . . . . Drone Recoveries . | . . . . . Exploration | -11 -10 -10 -10 -7 ------------- Run | Yrd Mat Min Sub Scr Turns Passed 56542 | 159 2318 1694 12855 39516 Spaces Moved 13626 | 118 932 682 4123 7771 Core 138 | 3 . . . 135 Treads 6596 | . 847 682 4017 1050 Legs . | . . . . . Wheels 5473 | 115 85 . 106 5167 Hover . | . . . . . Flight 1419 | . . . . 1419 Fastest Speed 34 | 50 90 240 160 34 Average Speed 166 | 89 203 240 238 118 Slowest Speed 560 | 100 240 240 560 320 Overloaded Moves . | . . . . . Propulsion Burnouts . | . . . . . Robots Hopped 3 | . . . . 3 Potential Cave-ins 4 | . . . . 4 Cave-ins Triggered . | . . . . . Exploration Rate (%) 77 | 3 97 96 97 94 Regions Visited 4 Branch Regions 3 Pre-discovered Areas 4 | . . 1 1 2 Known Exits Taken . | . . . . . Unknown Exits Taken 4 | 1 1 1 1 . Scrap Searched 31 | . . 3 16 12 Spaces Dug 15 | . . . 8 7 Terrain Destroyed 25 | . 6 . 11 8 Melee 15 | . . . 8 7 Projectile 4 | . . . 3 1 AOE 6 | . 6 . . . Terrain Rammed . | . . . . . Walls Destroyed . | . . . . . Machines Disabled . | . . . . . Actions | -11 -10 -10 -10 -7 --------- Run | Yrd Mat Min Sub Scr Total 47189 | 145 1202 712 6993 38137 Wait 32404 | . 105 8 2466 29825 Move 13616 | 117 931 681 4122 7765 Hop 3 | . . . . 3 Pick Up 355 | 8 26 1 95 225 Fast Attach 27 | 5 1 1 5 15 Attach 18 | 2 1 1 4 10 Detach 18 | . . 1 1 16 Swap 104 | . 17 1 56 30 Drop 302 | . 14 1 60 227 Fire 164 | 13 76 8 63 4 Melee 44 | . . . 28 16 Ram . | . . . . . Kick . | . . . . . Crush 18 | . 9 9 . . Escape Stasis . | . . . . . Rewire . | . . . . . Trap 115 | . 22 . 92 1 Miscellaneous 1 | . . . 1 . Route ------- -11/Scrapyard -10/Materials (discovered 6 exits: [*Mat x3] / [*Min x2] / *Sub) -10/Mines (discovered 3 exits: [*Mat x2] / *Sub) -10/Subcaves (discovered 3 exits: [*Mat x2] / *Scr) -7/Scraptown (discovered 2 exits: [*Fac x2]) History --------- Turn | Location | Event 17 | -11/Scrapyard | Discovered new exit (range 15) 160 | -11/Scrapyard | Entered Materials 307 | -10/Materials | Build established: Mutant 637 | -10/Materials | Discovered new exit (range 15) 724 | -10/Materials | Discovered new exit (range 12) 1037 | -10/Materials | Discovered new exit (range 16) 1421 | -10/Materials | Discovered new exit (range 15) 1525 | -10/Materials | Repaired Imp. Ion Engine 1552 | -10/Materials | Repaired Lgt. Treads 1804 | -10/Materials | Discovered new exit (range 13) 1904 | -10/Materials | Discovered new exit (range 11) 2478 | -10/Materials | Entered Mines 2526 | -10/Mines | Found a hidden stash of uninstalled traps 2592 | -10/Mines | Learned Materials garrison access intel 2936 | -10/Mines | Discovered new exit (range 10) 2967 | -10/Mines | Learned location of Storage (-7) 3123 | -10/Mines | Discovered new exit (range 9) 3222 | -10/Mines | Discovered new exit (range 9) 3253 | -10/Mines | Assisted by bots powering up and referring to "LRC-V3" 4172 | -10/Mines | Entered Subcaves 4172 | -10/Subcaves | Accompanied by 5 allies 4173 | -10/Subcaves | Approached by a straggling Scientist 4177 | -10/Subcaves | Led the pair of lost Derelicts to an unsafe place 4905 | -10/Subcaves | Shifting Twisted Machinery released Sub. Laser 5354 | -10/Subcaves | Scientist uncovered a shortcut to Scraptown 5378 | -10/Subcaves | Ambushed by Subdwellers from Twisted Machinery 6870 | -10/Subcaves | Shifting Twisted Machinery released Sub. Machine Gun 6889 | -10/Subcaves | Shifting Twisted Machinery released Mak. Hacking Suite 6894 | -10/Subcaves | Learned location of 1 exit from Materials 7185 | -10/Subcaves | Core integrity fell below 50% 7868 | -10/Subcaves | Visited Clippyterm 7875 | -10/Subcaves | Learned Factory fabricator intel 7875 | -10/Subcaves | Learned Factory garrison access intel 7995 | -10/Subcaves | A swath of the cavern ceiling suddenly collapsed 8103 | -10/Subcaves | A swath of the cavern ceiling suddenly collapsed 8159 | -10/Subcaves | Discovered new exit (range 6) 9448 | -10/Subcaves | Shifting Twisted Machinery released Piercing Trap 10419 | -10/Subcaves | Visited 4L-MR0's lab 10449 | -10/Subcaves | Found Power Bank 10463 | -10/Subcaves | Found Prototype Special Melee Weapon 12254 | -10/Subcaves | Shifting Twisted Machinery released Riot Gun 12266 | -10/Subcaves | Shifting Twisted Machinery released Shrapnel Trap 14174 | -10/Subcaves | Disturbed a concealed Subdweller 14400 | -10/Subcaves | Learned location of Zion (-7) 14400 | -10/Subcaves | Met a Zionite searching for "candidates" 14949 | -10/Subcaves | Discovered new exit (range 7) 15022 | -10/Subcaves | Disturbed a concealed Subdweller 15032 | -10/Subcaves | Disturbed a concealed Subdweller 16996 | -10/Subcaves | Build established: Hauler-Mutant 17027 | -10/Subcaves | Entered Scraptown 17341 | -7/Scraptown | Build established: Mutant 17438 | -7/Scraptown | Visited Symbiants 17602 | -7/Scraptown | Visited Awakened 17614 | -7/Scraptown | Heard Great Nut preacher, LISTEN AND RECITE! 17623 | -7/Scraptown | Visited Fellowship of the Rings 17690 | -7/Scraptown | Visited Bundlers 17834 | -7/Scraptown | Scanned Subdweller tech in exchange for log data 17839 | -7/Scraptown | Learned Research stockpile data 17842 | -7/Scraptown | Learned location of Quarantine (-2) 17846 | -7/Scraptown | Learned location of 1 exit from Factory 17947 | -7/Scraptown | Discovered new exit (range 11) 18067 | -7/Scraptown | Visited UFD Registry 18067 | -7/Scraptown | Registered with UFD as "Hardsplitter" 18240 | -7/Scraptown | Guru changed UFD alias to "Matterframe" 18566 | -7/Scraptown | Visited Assassins FH 18617 | -7/Scraptown | Visited The Evicted 19255 | -7/Scraptown | Visited Junk Repository 19332 | -7/Scraptown | Visited Curators Association 19464 | -7/Scraptown | Visited Research Penetration Think Tank 19517 | -7/Scraptown | Visited Science Testing Area 19546 | -7/Scraptown | Visited DA-N13 Charitable Foundation 19570 | -7/Scraptown | Found DCF Scrap (30 items) 19670 | -7/Scraptown | Discovered new exit (range 3) 19724 | -7/Scraptown | Visited Scrap Suit Storage 19765 | -7/Scraptown | Visited Botcube Research 19791 | -7/Scraptown | Visited Chapter 10 19824 | -7/Scraptown | Visited Abandonware Association 19837 | -7/Scraptown | Learned abandonware demo "OVRCLOCK.EXE" 19840 | -7/Scraptown | Learned abandonware demo "REVENGE.EXE" 19840 | -7/Scraptown | Learned abandonware demo "KABOOM.EXE" 19865 | -7/Scraptown | Visited LU-1G1's Boring Crew 20418 | -7/Scraptown | Build established: Derelict-Mutant 20631 | -7/Scraptown | Found Botcube 20983 | -7/Scraptown | Build established: Mutant 21582 | -7/Scraptown | Found Scrap Suit 22921 | -7/Scraptown | Botcube activated 22943 | -7/Scraptown | Botcube completed mutation into treaded form, armed with 2 guns. 24550 | -7/Scraptown | Build established: Derelict-Mutant 24611 | -7/Scraptown | Found Scrap Suit 26049 | -7/Scraptown | Met Optimus 26049 | -7/Scraptown | Accepted into 0bPrime 26125 | -7/Scraptown | Civil war broke out across Scraptown 26336 | -7/Scraptown | Optimus destroyed in the chaos of civil war 27174 | -7/Scraptown | Found Botcube 27178 | -7/Scraptown | Botcube activated 27182 | -7/Scraptown | Botcube completed mutation into core form (unarmed). 27187 | -7/Scraptown | Found Botcube 27193 | -7/Scraptown | Botcube activated 27223 | -7/Scraptown | Core integrity fell below 20% 27228 | -7/Scraptown | Lost 3 allies 27234 | -7/Scraptown | Found Botcube 27236 | -7/Scraptown | Found Botcube 27242 | -7/Scraptown | Botcube activated 27400 | -7/Scraptown | Build established: Mutant 28261 | -7/Scraptown | Found Lrg. Botcube 28297 | -7/Scraptown | Lost 6 allies 29192 | -7/Scraptown | Lost 4 allies 29315 | -7/Scraptown | Lost 5 allies 29744 | -7/Scraptown | Lost 4 allies 32515 | -7/Scraptown | Lost 3 allies 32921 | -7/Scraptown | Lost 3 allies 33041 | -7/Scraptown | Lost 3 allies 33120 | -7/Scraptown | Lost 3 allies 33601 | -7/Scraptown | Lost 12 allies 34339 | -7/Scraptown | Lost 3 allies 36458 | -7/Scraptown | Lost 3 allies 37606 | -7/Scraptown | Lost 3 allies 38492 | -7/Scraptown | Lost 4 allies 38557 | -7/Scraptown | Lost 3 allies 40641 | -7/Scraptown | Lost 3 allies 43661 | -7/Scraptown | Build established: Derelict-Mutant 51850 | -7/Scraptown | Lost 3 allies 52009 | -7/Scraptown | Lost 9 allies 52121 | -7/Scraptown | Lost 6 allies 53072 | -7/Scraptown | Lost 4 allies 53310 | -7/Scraptown | Found Scrap Suit 53326 | -7/Scraptown | Found Scrap Suit 54682 | -7/Scraptown | Found Lrg. Botcube 55009 | -7/Scraptown | Found Prototype Special Weapon 55046 | -7/Scraptown | Botcube activated 55066 | -7/Scraptown | Botcube completed mutation into legged form, armed with 2 guns. 55074 | -7/Scraptown | Identified LU-1G1's Laser Shovel 55374 | -7/Scraptown | Build established: Mutant 55595 | -7/Scraptown | Found Scrap Suit 56543 | -7/Scraptown | Destroyed by VP-V57(j) with Overtuned Pulse Rifle Last Messages --------------- 56463_ Dropped Ovr. Pulse Rifle. 56464_ Dropped Ovr. Barrage Gun. 56469_ Acquired Prototype Ballistic Gun. 56472_ Acquired Ovr. Pulse Rifle. 56476_ Acquired Hrd. Light Armor Plating. 56484_ Dropped Ovr. Pulse Rifle. 56485_ Dropped Prototype Ballistic Gun. 56502_ Dropped Hcp. Storage Unit. 56507_ Acquired Ovr. Titanium Leg. 56512_ Dropped Hrd. Light Armor Plating. 56513_ Acquired Ovr. Titanium Leg. 56515_ Dropped Ovr. Titanium Leg. 56515_ Acquired Hrd. Light Armor Plating. 56520_ Dropped Ovr. Titanium Leg. 56523_ Dropped Imp. Sensor Array. 56527_ Acquired Mak. Salvage Targeting Computer. 56528_ Dropped Mak. Salvage Targeting Computer. 56531_ VP-V57(j) switches sides: "Sorry everyone but I think they're right!" [Achievement: I Think I Know What's Going On] Map ----- +----------------------------------------------------+ | !!%!!!!!!%/!!!*%%=##?????????????????? | | !!/%!![%!!%=!!!!*%!#?????????????????? | | %%%!!%%!!!/!!%!!]!=##?????????????????? | | ! *!**! !%!!%!%!=!%%%%!]]%!!#?????????????????? | | /%%%[[%!%!%!!!=%=/[%!#?????????????????? | | """"""""""%!!=%!/%!%%!%/!%!!=!##?????????????????? | | """"""""""!!%!%!%!%=/%!*!=!![%##?????????????????? | | ##########=%%!!%!*%!!%=%!!%##=######?????????????? | | #######=!!!!%%%%!!=%==####!!#####?????????????? | | X"#????=##%!!!!%!!%%!==#=%=%!#""##?????????????? | | ##?#?#!%!#[&%%!!!!=!![=!!!%=!%!##?????????????? | | " X"###/#![!!!!!%!=![![! [[[!%!!*!##?????????????? | | " ###==!%!%%%%!!%=[%%["%=%%![==!]!#?????????????? | | !!%!%%%*%!%!%!!%[%%![!!=!!=%"=##?????????????? | | [=%%!!%!/!%%[%/!%%!!==[==[##=##?????????????? | | " ###/%!!%[!!%%!]%]!!!#[! !=!!#/!=#?????????????? | | " ""##%#!%=!*!%!=!!!%!!#!#"""""#!!!#?????????????? | | ##!=&[[=[[[!!%]!]!%[#=!######!""#?????????????? | | X"#/!%[[=!!%!%%!%%[!!!############?????????????? | | ##!!!=![!!=!%!%!! %#!!######??????????????????? | | #####!!!!!&!%![*%!%=% =########??????????????????? | | """""!%!%%%!%![%!%!![!;; " ""######??????????????? | | """""!=!%%%!%!%![!%%%! |! "#!&""#??????????????? | | !!%!%%%!!%!!*%%%!"# !! # &"#??????????????? | | !!% !%%%!|%!=!]! [#! = "#??????????????? | | %%!!%=!!%!/%%!= !%"#M@==[#"! "#??????????????? | | =%!%%%!!=!!![!% %=## [ ![#" !"#??????????????? | | %!%%!%!%!!%!%!==[ % ; ]= #[ ="#??????????????? | | %%"%%!%%%%!%%!=!%%% &/=; [[""#/ ="#??????????????? | | %%!!!!!!!%!=%!!!% %%%=! """#! ="#??????????????? | | %=%!%=!%!!!!%%&!!%!!%! # """"######??????????????? | | %%![%%!!%%*%!%[%[!!%%%!;#######??????????????????? | | %[%%=%!![!%%%%%!!!%!!% !#######??????????????????? | | %%!!%!!%!%%!!!!!%%!%!!####???????????????????????? | | ![[%!!%!!%%!!!!%j! %!%" *##########??????????????? | | !%/!!=!!!!%!%%!%%!![!%==###"#######??????????????? | | !!!=%!%!!!%!!!%!%%!!=! %= %! ==# ??????????????? | | !%==% ! !=!!%/%!%!!=%!!!!! !% !%## ??????????????? | | "=!"""##!%=!!!!%%![%![! !!= == *!# ??????????????? | | ########!%%=!%!!**=*!%! %=! # ??????????????? | | #??????##*%[!!!=!%%!! %!!!!= # ??????????????? | | #????#####%##!%%=!%%=%[!=#*########??????????????? | | ######!#####!#!!!=/%!![[!!#########??????????????? | | [%!!/!=%!!===!==%!%=%%*%![!#?????????????????????? | | ![!%%[![!!!%!!%%%/%%%!!%!%###????????????????????? | | [%!%%%!/%!%=!%!%%%!=%!%!!=! #????????????????????? | | %!!!%%!!%%%!%%%=!!%% !%%%=###????????????????????? | | %!!% %%*/ !%%%!!!![=!!![%!#??????????????????????? | | !%%!%!|%!!![%[[!%|%====!###??????????????????????? | | /[=! !%!#*!%%%#*%%==!%#==##??????????????????????? | +----------------------------------------------------+ Best States ------------- Heat Dissipation 25 Energy Generation 15 Energy Capacity 265 Matter Stores 300 Matter Capacity 300 Sight Range 16 Robot Scan Range 15 Terrain Scan Range 14 Terrain Scan Density 10 Armor Coverage 800 Evasion (%) 63 Recoil Reduction 2 Offensive Hacking 10 Item Schematics ----------------- Hcp. Storage Unit | -10/Materials | Hacked Robot Schematics ------------------ M-13 Machinist | -10/Materials | Hacked Fabricated ------------ Nothing Repaired ---------- Imp. Ion Engine | 32% | -10/Materials Lgt. Treads | 20% | -10/Materials Studied --------- None Alien Tech Used ----------------- None Achievements -------------- I Think I Know What's Going On Challenges ------------ None Game ------ Seed TachyonHelicalShooter Manual? 0 Play Time 04:42:19 Cumulative 135.3 hours Start 2026.04.03 @ 23:43:24 End 2026.04.04 @ 17:41:05 Sessions 2 Manual Loads 0 Difficulty Rogue Special Mode None Game No. 52 Rogue 51 Adventurer 1 Explorer 0 Win Type - Total 2 Types 1/0/1/0/0/0/0/0/0/0 Lore% 51 Gallery% 47 Achievement% 43 Wizard Run 0 Options --------- Layout 2 ASCII 0 Keyboard 1 Movement Vi Keybinds 1 Fullscreen 2 Font 32/Terminus Map View 50x44 Zoom Use 0% Tactical HUD 1 Map Filters NONE Filters NONE Steam 1 RUN: b82fe7cb-1e2f-4bbf-82fd-07e63bddce39